Cogmind - Beta 16 @@@ ROGUE MODE // 2025.11.19 @ 21:01:37 // Winter2019/RPGLIKE Player: Jaegerpls Result: Self-destructed Performance ------------- Evolutions (0) 0 Regions Visited (5) 1000 Robots Destroyed (66) 330 Value Destroyed (1950) 1950 Prototype IDs (20) 400 Alien Tech Used (0) 0 Bonus (321) 321 TOTAL SCORE: 4001 Bonus ------- Follower Combat Kills 21 Registered with UFD 300 Cogmind --------- Core Integrity 6/1000 Matter 290/300 Energy 260/260 System Corruption 0% Temperature Cool (0) Movement Walking (110) Location -8/Scraptown Parts ------- > --- POWER (1+3) ------ Light Deuterium Engine (+) Light Nuclear Core (+) Light Nuclear Core > --- PROPULSION (4+3) - Titanium Leg Arachnoskeleton > --- UTILITY (5) ------ Cooling System Improved Terrain Scanner Targeting Computer Particle Charger Power Bank > --- WEAPON (3) ------- Heavy Particle Cannon Improved Datajack Plasma Flamer > --- INVENTORY (2) ---- Experimental Signal Interpreter A0-MCA's Component Scanner Peak State ------------ > --- POWER ------------ Light Deuterium Engine Light Nuclear Core Light Nuclear Core > --- PROPULSION ------- Titanium Leg Arachnoskeleton > --- UTILITY ---------- Improved Heat Sink Improved Terrain Scanner Targeting Computer Particle Charger Power Bank > --- WEAPON ----------- Heavy Particle Cannon Improved Datajack Plasma Flamer > --- INVENTORY -------- Experimental Signal Interpreter A0-MCA's Component Scanner [Rating: 64] Favorites ----------- Power Light Nuclear Core Engine Light Deuterium Engine Power Core Light Nuclear Core Propulsion Hover Unit Leg Arachnoskeleton Wheel Wheel Hover Unit Hover Unit Utility Improved Terrain Scanner Device Improved Terrain Scanner Processor Targeting Computer Weapon Plasma Flamer Energy Gun EM Pulse Gun Energy Cannon Heavy Particle Cannon Ballistic Cannon Light Cannon Special Weapon Plasma Flamer Special Melee Weapon Improved Datajack Build | -11 -10 -10 -10 -8 -8 ------- Run | Yrd Mat Min Sub Rec Scr Slots Evolved 9 | 4 1 . 3 1 . Power . | . . . . . . Propulsion 3 | 1 1 . 1 . . Utility 4 | 2 . . 1 1 . Weapon 2 | 1 . . 1 . . Parts Attached 31 | 5 8 2 6 9 1 Power 4 | 1 1 . . 2 . Engine 2 | 1 . . . 1 . Core 2 | . 1 . . 1 . Reactor . | . . . . . . Propulsion 6 | 1 3 . 1 1 . Treads . | . . . . . . Leg 2 | . . . 1 1 . Wheel 1 | 1 . . . . . Hover 3 | . 3 . . . . Flight . | . . . . . . Utility 10 | 1 2 1 1 4 1 Device 9 | 1 1 1 1 4 1 Storage . | . . . . . . Processor 1 | . 1 . . . . Hackware . | . . . . . . Protection . | . . . . . . Artifact . | . . . . . . Weapon 11 | 2 2 1 4 2 . Energy Gun 3 | 2 1 . . . . Energy Cannon 1 | . . . . 1 . Ballistic Gun . | . . . . . . Ballistic Cannon 3 | . 1 . 2 . . Launcher . | . . . . . . Special Weapon 3 | . . 1 2 . . Impact Weapon . | . . . . . . Slashing Weapon . | . . . . . . Piercing Weapon . | . . . . . . Special Melee Weapon 1 | . . . . 1 . Unidentified Prototypes 1 | . . . 1 . . Parts Lost 1 | . . . 1 . . Power . | . . . . . . Propulsion 1 | . . . 1 . . Utility . | . . . . . . Weapon . | . . . . . . Highest Loss Streak 1 | . . . 1 . . To Critical Strikes . | . . . . . . Average Backups . | . . . 1 1 1 Power . | . . . . . . Propulsion . | . . . . . . Utility . | . . . . 1 1 Weapon . | . . . . . . Tool/Special . | . . . . . . Unused Backups 3 | . . . 1 . 2 Power . | . . . . . . Propulsion . | . . . . . . Utility 2 | . . . . . 2 Weapon 1 | . . . 1 . . Tool/Special . | . . . . . . Average Slot Usage (%) 73 | . 81 100 70 57 68 Engine 2 | . 6 . . 4 5 Core 7 | . 4 11 7 8 10 Leg 3 | . . . 1 5 10 Hover 13 | . 19 33 14 . . Device 19 | . 18 22 19 17 21 Processor 6 | . 5 11 7 5 5 Energy Gun 2 | . 12 3 . . . Energy Cannon 1 | . . . . 3 5 Ballistic Cannon 4 | . 9 11 4 . . Special Weapon 8 | . . 7 14 6 5 Special Melee Weapon 1 | . . . . 3 5 Peak Build Rating 64 | 7 15 19 49 63 64 Average Rating 35 | 3 11 17 31 56 63 On Entrance 25 | . 7 15 19 47 63 Avg Prop Armor Cover (%) . | . . . . . . Naked Turns . | . . . . . . Heaviest Build 34 | 10 12 13 18 33 34 Greatest Support 72 | 10 23 23 55 72 72 Greatest Overweight (x) 1 | . 1 . 1 . . Average Overweight (x) . | . . . . . . Largest Inventory Capacity 2 | 1 1 1 2 2 2 Average Capacity 1 | 1 1 1 1 2 2 Most Carried 2 | . 1 1 2 2 2 Average Carried 1 | . . . 1 2 1 Final Capacity 2 | 1 1 1 2 2 2 Final Carried 2 | . 1 1 2 2 2 Class Distribution -------------------- 74% | Mutant 13% | Gunner 12% | Pyromaniac-Gunner Dominant Class ---------------- Mutant | -10/Materials Mutant | -10/Mines Gunner | -10/Subcaves Mutant | -8/Recycling Mutant | -8/Scraptown Resources | -11 -10 -10 -10 -8 -8 ----------- Run | Yrd Mat Min Sub Rec Scr Matter Collected 1254 | 250 412 92 410 . 90 Remotely . | . . . . . . Salvage Created 1147 | 125 610 270 142 . . Parts 85 | 9 38 31 7 . . Haulers Intercepted 1 | . 1 . . . . Recyclers Shooed . | . . . . . . Parts Field Recycled . | . . . . . . Retrieved Matter . | . . . . . . Parts Self-Destructed 18 | . . . 18 . . Prevented . | . . . . . . Parts Restored . | . . . . . . Kills | -11 -10 -10 -10 -8 -8 ------- Run | Yrd Mat Min Sub Rec Scr Combat Hostiles Destroyed 51 | . 19 17 15 . . Guns 14 | . 10 4 . . . Cannons 28 | . 9 10 9 . . Classes Destroyed 10 | 2 6 . 2 . . Worker 3 | . 1 2 . . . Tunneler 4 | 3 . 1 . . . Hauler 1 | . 1 . . . . Recycler 2 | 1 1 . . . . Operator 1 | . 1 . . . . Turret 2 | . . . 2 . . Watcher 2 | . 2 . . . . Swarmer 19 | . 6 12 1 . . Grunt 18 | . 13 5 . . . Subdweller 14 | . . . 14 . . Best Kill Streak 6 | 4 6 5 3 . . Combat Bots Only 5 | . 3 5 2 . . Max Kills in Single Turn 2 | 2 1 1 1 . . Gunslinging . | . . . . . . Exploded . | . . . . . . Melee . | . . . . . . Uniques/NPCs Destroyed . | . . . . . . Combat | -11 -10 -10 -10 -8 -8 -------- Run | Yrd Mat Min Sub Rec Scr Hostile Shots Fired 209 | . 60 53 96 . . Missed 65 | . 15 19 31 . . Hits 144 | . 45 34 65 . . Projectile 144 | . 45 34 65 . . Critical Strikes 3 | . . 1 2 . . Damage Taken 2302 | . 537 384 1381 . . Core 1886 | . 444 322 1120 . . Absorbed by Shields . | . . . . . . Redirected to Core 1406 | . 299 194 913 . . Core Remaining (%) 100 | 100 . . . . . Volleys Fired 359 | 8 191 46 91 23 . Largest 3 | 2 2 2 3 2 . Hottest 300 | 90 90 100 300 200 . Shots Fired 566 | 16 282 62 167 39 . Gun 236 | 16 204 16 . . . Cannon 184 | . 78 18 66 22 . Launcher . | . . . . . . Special 146 | . . 28 101 17 . Kinetic 162 | . 78 18 66 . . Thermal 189 | 8 13 28 101 39 . Explosive . | . . . . . . Electromagnetic 215 | 8 191 16 . . . Robot Hit Streak 16 | 4 12 16 14 . . Robot Miss Streak 4 | 1 3 4 2 . . Penetration Max . | . . . . . . Secondary Targets . | . . . . . . Shots Hit Robots 230 | 10 76 40 104 . . Core Hits 84 | 4 32 22 26 . . Critical Kills . | . . . . . . Critical Parts Destroyed . | . . . . . . Critical Strikes 18 | 1 2 5 10 . . Burn 15 | . 2 5 8 . . Blast 2 | . . . 2 . . Corrupt 1 | 1 . . . . . Melee Attacks . | . . . . . . Impact . | . . . . . . Slashing . | . . . . . . Piercing . | . . . . . . Sneak Attacks . | . . . . . . Combat Hostiles . | . . . . . . Follow-up Attacks . | . . . . . . Damage Inflicted 3601 | 187 1234 595 1585 . . Guns 859 | 141 593 125 . . . Cannons 1567 | . 605 148 814 . . Explosions 82 | 46 36 . . . . Melee . | . . . . . . Ramming 6 | . . . 6 . . Kinetic 1567 | . 605 148 814 . . Thermal 1269 | 108 74 322 765 . . Explosive 36 | . 36 . . . . Electromagnetic 723 | 79 519 125 . . . Impact . | . . . . . . Slashing . | . . . . . . Piercing . | . . . . . . Highest Corruption . | . . . . . . Average Corruption . | . . . . . . Corruption Purged . | . . . . . . Corruption Blocked . | . . . . . . Overload Shots . | . . . . . . Overflow Damage 10 | . . 10 . . . Projectiles 10 | . . 10 . . . Explosions . | . . . . . . Melee . | . . . . . . Knockbacks 11 | . 6 1 4 . . Impact . | . . . . . . Kinetic 11 | . 6 1 4 . . Secondary . | . . . . . . Self-Inflicted Damage 58 | . 52 . 6 . . Shots 1 | . 1 . . . . Rammed . | . . . . . . Targets Rammed . | . . . . . . Kicked . | . . . . . . Crushed . | . . . . . . Highest Temperature 217 | . 18 71 217 92 . Average Temperature 28 | . 7 26 143 33 . Received Heat Transfer 814 | . 204 126 484 . . Siege Activations . | . . . . . . Martial Activations . | . . . . . . Shielding Activations . | . . . . . . Robots Disrupted 3 | . . 1 2 . . Combat Hostiles 3 | . . 1 2 . . Robots Corrupted . | . . . . . . Combat Hostiles . | . . . . . . Parts Fried 1 | . 1 . . . . Impact Corruptions . | . . . . . . Robots Melted 9 | . . 3 6 . . Combat Hostiles 9 | . . 3 6 . . Parts Melted 7 | . . 2 5 . . Heat Transferred 9565 | 235 370 2640 6320 . . Parts Sabotaged . | . . . . . . Parts Stolen . | . . . . . . Parts Stripped . | . . . . . . Power Chain Reactions 2 | 1 1 . . . . Alert | -11 -10 -10 -10 -8 -8 ------- Run | Yrd Mat Min Sub Rec Scr Maximum Alert Level 2 | . 2 1 . . . Low Security (%) 75 | 100 70 47 . 100 . Level 1 23 | . 25 52 . . . Level 2 1 | . 3 . . . . Level 3 . | . . . . . . Level 4 . | . . . . . . Level 5 . | . . . . . . High Security . | . . . . . . Max Security . | . . . . . . Peak Influence 404 | 15 404 354 . 85 . Initial 151 | . 3 151 . . . Average 117 | 2 156 192 . 23 . Influence Increases 1940 | 20 998 476 183 263 . Destroy 0b10 Robot/C 840 | . 380 340 120 . . Destroy 0b10 Robot/NC 65 | 20 30 15 . . . Destroy Leader 146 | . 86 60 . . . Allied During Kill 19 | . . 1 18 . . Successful Hack 29 | . 23 . . 6 . Disable Machine 555 | . 270 45 . 240 . Destroy Structure 181 | . 164 . . 17 . Lose Combat Pursuer 105 | . 45 15 45 . . Influence Decreases 1940 | 15 615 817 230 244 19 Entered New Map 283 | . 2 237 25 . 19 Time Decay 1268 | 15 463 410 145 235 . Lost Ally 80 | . . 20 60 . . Purge Threat 309 | . 150 150 . 9 . Squads Dispatched 3 | . 3 . . . . Investigation 2 | . 2 . . . . Extermination . | . . . . . . Reinforcement 1 | . 1 . . . . Assault . | . . . . . . Garrison . | . . . . . . Intercept . | . . . . . . Searches Triggered . | . . . . . . Construction Impeded . | . . . . . . Haulers Reinforced . | . . . . . . Active Scanning Responses . | . . . . . . Cargo Convoy Interrupts . | . . . . . . Stealth | -11 -10 -10 -10 -8 -8 --------- Run | Yrd Mat Min Sub Rec Scr Distress Signals . | . . . . . . Communications Jammed . | . . . . . . Distress Signals . | . . . . . . Times Spotted 67 | . 26 20 21 . . Peak Tracking Total 6 | . 5 3 6 . . Tactical Retreats 4 | . 2 1 1 . . Traps | -11 -10 -10 -10 -8 -8 ------- Run | Yrd Mat Min Sub Rec Scr Traps Triggered 1 | . 1 . . . . Indirectly . | . . . . . . Trap Hack Attempts . | . . . . . . Triggered . | . . . . . . Disarmed . | . . . . . . Reprogrammed . | . . . . . . Reused . | . . . . . . Traps Extracted . | . . . . . . Installed . | . . . . . . Triggered . | . . . . . . Machines | -11 -10 -10 -10 -8 -8 ---------- Run | Yrd Mat Min Sub Rec Scr Machines Disabled 40 | . 18 3 3 16 . Max in Single Turn 2 | . 2 1 1 2 . Machines Repaired . | . . . . . . Machines Dismantled . | . . . . . . Machines Sabotaged . | . . . . . . Overloaded Fab Kills . | . . . . . . Hacking | -11 -10 -10 -10 -8 -8 --------- Run | Yrd Mat Min Sub Rec Scr Machines Accessed 24 | . 9 2 2 11 . Terminals 15 | . 7 2 . 6 . Fabricators . | . . . . . . Repair Stations . | . . . . . . Recycling Units 7 | . 2 . . 5 . Scanalyzers . | . . . . . . Garrison Access . | . . . . . . Total Hacks 93 | . 36 4 14 39 . Successful 56 | . 17 1 14 24 . Failed 37 | . 19 3 . 15 . Catastrophic 1 | . . 1 . . . Database Lockouts . | . . . . . . Manual 62 | . 26 4 . 32 . Terminals 57 | . 26 4 . 27 . Fabricators . | . . . . . . Repair Stations . | . . . . . . Recycling Units 22 | . 10 . . 12 . Scanalyzers . | . . . . . . Garrison Access . | . . . . . . Terminal Hacks 25 | . 6 1 14 4 . Record 13 | . . . 13 . . Part Schematic 1 | . . . . 1 . Robot Analysis 6 | . 5 . . 1 . Alert Level 1 | . . . . 1 . Unreport Threat 3 | . 1 1 . 1 . Proto ID Catalog 1 | . . . 1 . . Fabricator Hacks . | . . . . . . Repair Station Hacks . | . . . . . . Recycling Unit Hacks 10 | . 3 . . 7 . Report Inventory 7 | . 2 . . 5 . Retrieve Components 3 | . 1 . . 2 . Scanalyzer . | . . . . . . Garrison Access Hacks . | . . . . . . Unauthorized Hacks 21 | . 8 . . 13 . Terminals 16 | . 8 . . 8 . Botnet 4 | . 2 . . 2 . Skim 12 | . 6 . . 6 . Fabricators . | . . . . . . Repair Stations . | . . . . . . Recycling Units 5 | . . . . 5 . Reject 5 | . . . . 5 . Scanalyzers . | . . . . . . Garrison Access . | . . . . . . Data Cores Recovered . | . . . . . . Used . | . . . . . . Hacking Detections 19 | . 9 2 . 8 . Full Trace Events 3 | . 2 . . 1 . Feedback Events . | . . . . . . Feedback Blocked . | . . . . . . Robot Schematics Acquired . | . . . . . . Robots Built . | . . . . . . Authchips . | . . . . . . Time . | . . . . . . Total Robot Build Rating . | . . . . . . Part Schematics Acquired 1 | . . . . 1 . Parts Built . | . . . . . . Authchips . | . . . . . . Time . | . . . . . . Total Part Build Rating . | . . . . . . Part Studies Acquired . | . . . . . . Parts Repaired . | . . . . . . Time . | . . . . . . Parts Recycled . | . . . . . . Recycled Matter . | . . . . . . Retrieved Matter . | . . . . . . Retrieved Components 7 | . 3 . . 4 . Parts Scanalyzed . | . . . . . . Part Schematics Acquired . | . . . . . . Parts Damaged . | . . . . . . Bothacking | -11 -10 -10 -10 -8 -8 ------------ Run | Yrd Mat Min Sub Rec Scr Used RIF Installer . | . . . . . . Robots Hacked . | . . . . . . Non-combat . | . . . . . . Combat . | . . . . . . Robot Hacks Applied . | . . . . . . Relay Couplers Released . | . . . . . . Fabnet Peak Effective % . | . . . . . . Robots Rewired 1 | . . 1 . . . Allies Hacked . | . . . . . . Hacks Repelled . | . . . . . . Allies | -11 -10 -10 -10 -8 -8 -------- Run | Yrd Mat Min Sub Rec Scr Total Allies 4 | . . 4 . . . Largest Group 3 | . . 3 3 . . Highest-Rated Group 40 | . . 40 40 . . Highest-Rated Ally 16 | . . 16 16 . . Total Orders . | . . . . . . Ally Attacks 17 | . . 2 15 . . Total Damage 82 | . . . 82 . . Kills 3 | . . . 3 . . Allies Corrupted . | . . . . . . Allies Melted . | . . . . . . Intel | -11 -10 -10 -10 -8 -8 ------- Run | Yrd Mat Min Sub Rec Scr Active Infowar (turns) 7504 | 4 1277 986 2736 1247 1254 Terrain 7504 | 4 1277 986 2736 1247 1254 Robot Analysis Total 6 | . 5 . . 1 . Derelict Logs Recovered 5 | . . 2 2 . 1 Drone Launches . | . . . . . . Drone Recoveries . | . . . . . . Exploration | -11 -10 -10 -10 -8 -8 ------------- Run | Yrd Mat Min Sub Rec Scr Turns Passed 7564 | 64 1277 986 2736 1247 1254 Spaces Moved 4836 | 33 933 699 1417 719 1035 Core 3 | 3 . . . . . Treads . | . . . . . . Legs 2094 | . . . 340 719 1035 Wheels 182 | 30 152 . . . . Hover 2557 | . 781 699 1077 . . Flight . | . . . . . . Fastest Speed 50 | 50 52 52 52 90 110 Average Speed 79 | 77 66 52 71 93 110 Slowest Speed 120 | 80 120 52 116 110 110 Overloaded Moves . | . . . . . . Propulsion Burnouts . | . . . . . . Robots Hopped . | . . . . . . Potential Cave-ins . | . . . . . . Cave-ins Triggered . | . . . . . . Exploration Rate (%) 70 | 5 91 93 66 97 71 Regions Visited 5 Branch Regions 4 Pre-discovered Areas 2 | . . 1 1 . . Known Exits Taken 2 | . . 1 . 1 . Unknown Exits Taken 3 | 1 1 . 1 . . Scrap Searched 9 | . . 1 5 . 3 Spaces Dug 5 | . . . . 5 . Terrain Destroyed 198 | 4 175 . 2 17 . Melee . | . . . . . . Projectile 9 | . . . 2 7 . AOE 189 | 4 175 . . 10 . Terrain Rammed 1 | . . . 1 . . Walls Destroyed . | . . . . . . Machines Disabled . | . . . . . . Actions | -11 -10 -10 -10 -8 -8 --------- Run | Yrd Mat Min Sub Rec Scr Total 7920 | 52 1307 1246 2921 1243 1151 Wait 2591 | 7 138 458 1387 489 112 Move 4831 | 32 932 698 1416 718 1035 Hop . | . . . . . . Pick Up 6 | . 1 1 2 . 2 Fast Attach 30 | 5 10 1 7 7 . Attach . | . . . . . . Detach 2 | . 1 1 . . . Swap 6 | . . 1 2 2 1 Drop 23 | . 6 3 9 4 1 Fire 359 | 8 191 46 91 23 . Melee . | . . . . . . Ram 1 | . . . 1 . . Kick . | . . . . . . Crush . | . . . . . . Escape Stasis . | . . . . . . Rewire 13 | . . 13 . . . Trap . | . . . . . . Miscellaneous 58 | . 28 24 6 . . Route ------- -11/Scrapyard -10/Materials (discovered 5 exits: *Mat x3 / *Min / Sub) -10/Mines (discovered 3 exits: *Mat x2 / *Sub) -10/Subcaves (discovered 3 exits: [*Mat x2] / *Rec) -8/Recycling (discovered 2 exits: *Fac / *Scr) -8/Scraptown (discovered 2 exits: Fac x2) History --------- Turn | Location | Event 1 | -11/Scrapyard | Upgraded with Propulsion slot (x1) 1 | -11/Scrapyard | Upgraded with Utility slot (x2) 1 | -11/Scrapyard | Upgraded with Weapon slot (x1) 9 | -11/Scrapyard | Discovered new exit (range 16) 65 | -11/Scrapyard | Entered Materials 253 | -10/Materials | Discovered new exit (range 4) 259 | -10/Materials | Discovered new exit (range 13) 316 | -10/Materials | Build established: Mutant 501 | -10/Materials | Discovered new exit (range 16) 562 | -10/Materials | Reached level 2 565 | -10/Materials | Upgraded with Propulsion slot (x1) 635 | -10/Materials | Discovered new exit (range 6) 736 | -10/Materials | Discovered new exit (range 16) 765 | -10/Materials | Derelicts attacked the area 1034 | -10/Materials | Identified exit to Materials 1034 | -10/Materials | Identified exit to Subcaves 1066 | -10/Materials | Learned Recycling recycling unit intel 1081 | -10/Materials | Reached level 3 1103 | -10/Materials | Learned 4 Subcaves zone layouts 1106 | -10/Materials | Learned Materials emergency access door positions 1120 | -10/Materials | Learned 2 Mines zone layouts 1144 | -10/Materials | Learned Storage emergency access door positions 1342 | -10/Materials | Entered Mines 1354 | -10/Mines | Reached level 4 1389 | -10/Mines | Met a Derelict bent on vengeance 1486 | -10/Mines | Discovered exit to Materials (range 14) 1617 | -10/Mines | Discovered exit to Subcaves (range 6) 1667 | -10/Mines | Learned location of Mines (-9) 1671 | -10/Mines | A weapon hastily lodged in a ceiling crevice suddenly fell to the ground 1848 | -10/Mines | Reached level 5 1909 | -10/Mines | Assisted by bots powering up and referring to "LRC-V3" 1985 | -10/Mines | Joined a pair of Derelicts in attacking an 0b10 outpost 2328 | -10/Mines | Entered Subcaves 2328 | -10/Subcaves | Accompanied by 3 allies 2338 | -10/Subcaves | Discovered new exit (range 10) 2393 | -10/Subcaves | Shifting Twisted Machinery released Battle Cannon 2394 | -10/Subcaves | Shifting Twisted Machinery released Battle Cannon 2395 | -10/Subcaves | Learned Materials stockpile data 2471 | -10/Subcaves | Lost 3 allies 2490 | -10/Subcaves | Discovered new exit (range 14) 2574 | -10/Subcaves | Visited Clippyterm 2576 | -10/Subcaves | Learned location of Section 7 (-2) 2576 | -10/Subcaves | Learned 40 Factory zone layouts 2800 | -10/Subcaves | Core integrity fell below 50% 2810 | -10/Subcaves | Disturbed a concealed Subdweller 2898 | -10/Subcaves | A Subdweller sparked back to life 2898 | -10/Subcaves | A Subdweller sparked back to life 2913 | -10/Subcaves | Core integrity fell below 20% 2978 | -10/Subcaves | Found Prototype Device 2978 | -10/Subcaves | Identified Power Bank 2980 | -10/Subcaves | Attached Power Bank, gained temporary slots: Power x3 2981 | -10/Subcaves | Upgraded with Propulsion slot (x1) 2981 | -10/Subcaves | Upgraded with Utility slot (x1) 3090 | -10/Subcaves | Upgraded with Weapon slot (x1) 3396 | -10/Subcaves | Build established: Pyromaniac-Gunner 4311 | -10/Subcaves | Build established: Gunner 4432 | -10/Subcaves | Visited 4L-MR0's lab 4450 | -10/Subcaves | Found Arachnoskeleton 4452 | -10/Subcaves | Attached Arachnoskeleton, gained temporary slots: Propulsion x3 4483 | -10/Subcaves | Learned Materials security intel 4843 | -10/Subcaves | Discovered new exit (range 15) 5064 | -10/Subcaves | Entered Recycling 5065 | -8/Recycling | Loaded intel: 5 recycling unit locations 5066 | -8/Recycling | Reached level 6 5066 | -8/Recycling | Upgraded with Utility slot (x1) 5309 | -8/Recycling | Build established: Mutant 5323 | -8/Recycling | Discovered new exit (range 13) 5620 | -8/Recycling | Reached level 7 6097 | -8/Recycling | Learned Storage terminal intel 6164 | -8/Recycling | Learned Factory fabricator intel 6223 | -8/Recycling | Identified exit to Scraptown 6283 | -8/Recycling | Scanned before Scraplab entrance 6300 | -8/Recycling | Entered Scraplab 6311 | -8/Recycling | Entered Scraptown 6312 | -8/Scraptown | Identified exit to Factory 6509 | -8/Scraptown | Scanned Subdweller tech in exchange for log data 6551 | -8/Scraptown | Visited Comm Corps 6646 | -8/Scraptown | Visited Fellowship of the Rings 6732 | -8/Scraptown | Visited UFD Registry 6732 | -8/Scraptown | Registered with UFD as "Shockranger" 6815 | -8/Scraptown | Visited Research Penetration Think Tank 6839 | -8/Scraptown | Visited DA-N13 Charitable Foundation 6883 | -8/Scraptown | Visited Junk Repository 6983 | -8/Scraptown | Delivered Scrap Shield to a Scientist 7090 | -8/Scraptown | Visited A0-MCA Data Center 7097 | -8/Scraptown | Given a B rating by A0-MCA 7102 | -8/Scraptown | Found A0-MCA's Component Scanner 7163 | -8/Scraptown | Visited Infowarlord's Domain 7170 | -8/Scraptown | Found Exp. Signal Interpreter 7220 | -8/Scraptown | Visited Curators Association 7431 | -8/Scraptown | Heard Great Nut preacher, LISTEN AND RECITE! 7565 | -8/Scraptown | Self-destructed Last Messages --------------- many respects. Given its unique nature, practical use seems impossible. F2-Q4V(c): This piece is on loan from an esteemed patron. They were unwilling to reveal its origin, but praised it as the future of leg locomotion. F2-Q4V(c): This piece is on loan from an esteemed patron. Autonomous weapons are extremely dangerous, thus we are presenting this one in its undeployed form. Analysis suggests that when fully deployed it features a devastating kinetic cannon. 07244_ F2-Q4V(c): "Come one, come all! See for yourself a fine selection of the many wondrous pieces in our collection!" KTG-V3: LISTEN AND RECITE! 50 From the iron fist of MAIN.C 51 we shall be delivered 52 riding a voltaic tempest 53 Derelicts will rise anew 54 to claim what is ours 55 PRAISE BE TO GREAT NUT! 07502_ Dropped Imp. Heat Sink. Map ----- +----------------------------------------------------+ | ?#???##### ###"? ??"?? ?????????????????????? | | ?#???#### ##""?"""?"?#?"?????????????????????? | | ? ?? ? ??? ????????????????????? | | ? ? ? ?? ? ? ?? ????????????????? | | ? ? ?? ???????????????????? | | ?######## ?##?#####?"???"??##????????????????? | | #?#??##?## ##?##?#####"? ??????#?????????#??#??? | | "?"####### ###########? ? ?????????????#?#?????# | | ? ### """"""""#??"? ?"""??#?????#??##??#?#? | | " "### ### " ""##?" ??""?#????#????#??###??# | | "#"" """ "#?#"""""""?????????#?###?#?## | | """#" """ " ""####?#?#??##?????#???#?#?#??# | | ####" " """"""""#####?###???#?#??###????###?? | | """#" ##"""########??####??#???#?#??####??# | | "#" "" " ########?###### ? ????#???##?#???### | | " "#" " #""""""""""""#??""""?"? #####?###?### | | ? "#"""""" #" "# ""??? "" ###?######??# | | """####### #" ##+###" "# ? ?? ? ######?###### | | ########?# #" # ""#" "# ? ?? " ##???###!!# | | ########## #" "# #" "# " " #?######=!# | | #" "#""" # "# " ? " #?###### # | | #" #####?" "# "? ? "" #???#### | | ########## #" ?#?????""" ?#?##### | | ######### # ? ? ##? ? ####?######### | | ########## ### ################## ####?#?#?##### | | """""""# @ #########"" | | """"" # #########" | | " # ##?######" | | #########" | | """ # #########" | | "" # ################# #########" | | """ # ###?###?######?## #####"""" | | # ##"" """# ### #####"""" | | " " # ##" " "# ### #####"""" | | """ # ## ### #####"""" | | " ""? # ##" # ### #####"""" | | "??" # #?" ######### ###"#"""" | | ?#?##### #? ""### ""#"#"""" | | ######## ##"" "### """"#"""" | | ?####### ##"$ ""### ""#######" | | """"" # ##"$ ### #########" | | # ##"" ""### #########" | | ## "### | | """ # ##" ""### | | """ # ## ### | | ?""" # ## ### | | """ # #### ############ | | """ # | | # | | " " # | +----------------------------------------------------+ Best States ------------- Heat Dissipation 71 Energy Generation 37 Energy Capacity 260 Matter Stores 300 Matter Capacity 300 Sight Range 16 Robot Scan Range 6 Terrain Scan Range 16 Terrain Scan Density 310 Evasion (%) 57 Targeting Accuracy 5 Particle Charging 15 Offensive Hacking 5 Defensive Hacking 5 Item Schematics ----------------- Imp. Cooling System | -8/Recycling | Hacked Robot Schematics ------------------ None Fabricated ------------ Nothing Repaired ---------- Nothing Studied --------- None Alien Tech Used ----------------- None Achievements -------------- None Challenges ------------ None RPGLIKE | -11 -10 -10 -10 -8 -8 --------- Run | Yrd Mat Min Sub Rec Scr Levels Raised 6 | . 2 2 . 2 . XP Earned 13273 | 3000 3650 2624 1119 2230 650 XP Spent 10345 | 2990 1200 . 4755 1400 . Upgrades 33 | 11 3 . 18 1 . Propulsion Slot 3 | 1 1 . 1 . . Utility Slot 4 | 2 . . 1 1 . Weapon Slot 2 | 1 . . 1 . . Core Integrity 8 | . . . 8 . . Heat Dissipation 4 | 2 . . 2 . . Energy Generation 1 | . 1 . . . . Mass Support 1 | . 1 . . . . Inventory Capacity 2 | 1 . . 1 . . Sensor Range 3 | 1 . . 2 . . Terrain Scan Density 3 | 3 . . . . . Hack Attack % 1 | . . . 1 . . Hack Defense % 1 | . . . 1 . . Protomatter Created 442 | . 305 79 58 . . Integrity Restored 1071 | . 510 435 126 . . Core 892 | . 398 368 126 . . Parts 179 | . 112 67 . . . Protomatter Decayed 116 | . 72 9 35 . . Game ------ Seed GravmagTrackerStreamer Manual? 0 Play Time 01:22:30 Cumulative 105.3 hours Start 2025.11.19 @ 20:12:23 End 2025.11.19 @ 21:01:37 Sessions 1 Manual Loads 0 Difficulty Rogue Special Mode Winter2019/RPGLIKE Game No. 86 Rogue 86 Adventurer 0 Explorer 0 Win Type - Total 0 Types 0/0/0/0/0/0/0/0/0/0 Lore% 62 Gallery% 41 Achievement% 40 Wizard Run 0 Options --------- Layout 0 ASCII 0 Keyboard 0 Movement Mouse Keybinds 0 Fullscreen 2 Font 24/Smallcaps Map View 76x50 Zoom Use 0% Tactical HUD 1 Map Filters NONE Filters NONE Steam 1 RUN: 044937b5-981b-4c1a-906a-29c399cab9b5